Workbook

Sheet 00はじめに
A1: ※計算フローは以下の通りです。

Sheet 流出係数算出
I1: 行為前Σan | J1: 行為後Σan
E2: 流出係数算定結果 | G2: 行為前 | H2: 行為後 | I2: =SUM($G$9:$G$96) -> 0 | J2: =SUM($H$9:$H$96) -> 0
G3: =$I$4/$I$2 ->  | H3: =$J$4/$J$2 ->  | I3: 行為前Σ(fn*an) | J3: 行為後Σ(fn*an)
I4: =SUM($I$9:$I$96) -> 0 | J4: =SUM($J$9:$J$96) -> 0
B5: 雨水浸透阻害行為の技術基準として設定する流出係数
B7: 区分 | E7: 土地利用の形態の細区分 | F7: 流出係数 | G7: 行為前面積 （ha） | H7: 行為後面積 （ha）
B8: 計 | F8: － | G8: =SUM(G9:G32) -> 0 | H8: =SUM(H9:H32) -> 0
B9: 宅地等に該当する土地 | C9: 第１号関連 | E9: 宅地 | F9: 0.9 | I9: =$F9*$G9 -> 0 | J9: =$F9*$H9 -> 0
E10: 池沼 | F10: 1 | I10: =$F10*$G10 -> 0 | J10: =$F10*$H10 -> 0
E11: 水路 | F11: 1 | I11: 0 | J11: 0
E12: ため池 | F12: 1 | I12: 0 | J12: 0
E13: 道路(法面を有しないもの） | F13: 0.9 | I13: 0 | J13: 0
E14: 道路（法面を有するもの） | I14: 0 | J14: 0
E15: 鉄道線路（法面を有しないもの） | F15: 0.9 | I15: 0 | J15: 0
E16: 鉄道線路（法面を有するもの） | I16: 0 | J16: 0
E17: 飛行場（法面を有しないもの） | F17: 0.9 | I17: 0 | J17: 0
E18: 飛行場（法面を有するもの） | I18: 0 | J18: 0
E19: 太陽光パネル | F19: 0.9 | I19: 0 | J19: 0
B20: 宅地等以外の土地 | C20: 第２号 関 連 | E20: 不浸透性材料により舗装された土地（法面を除く） | F20: 0.95 | I20: 0 | J20: 0
E21: 不浸透性材料により覆われた法面 | F21: 1 | I21: 0 | J21: 0
C22: 第３号 関 連 | E22: ゴルフ場（雨水を排除するための排水施設を伴うものに限る） | F22: 0.5 | I22: 0 | J22: 0
E23: 運動場その他これに類する施設（雨水を排除するための排水施設を伴うものに限る） | F23: 0.8 | I23: 0 | J23: 0
E24: ローラーその他これに類する建設機械を用いて締め固められた土地 | F24: 0.5 | I24: 0 | J24: =$F24*$H24 -> 0
C25: 上記第１号から第３号に掲げる土地以外の土地 | E25: 山地 | F25: 0.3 | I25: 0 | J25: 0
E26: 人工的に造成され植生に覆われた法面 | F26: 0.4 | I26: 0 | J26: 0
E27: 林地、耕地、原野その他ローラーその他これに類する建設機械を用いて締め固められていない土地 | F27: 0.2 | I27: =$F27*$G27 -> 0 | J27: 0
B28: そ の 他 | I28: 0 | J28: 0
I29: 0 | J29: 0
I30: 0 | J30: 0
I31: 0 | J31: 0
I32: 0 | J32: 0

Sheet 降雨強度
A1: ※降雨は対象地域の降雨に変更して下さい
A2: 時 | B2: 分 | C2: 降雨量 （mm/h） | D2: 時 | E2: 分 | F2: 降雨量 （mm/h） | G2: 時 | H2: 分 | I2: 降雨量 （mm/h） | J2: 時 | K2: 分 | L2: 降雨量 （mm/h）
A3: 0 | B3: 0－10 | C3: 2.657108811 | D3: 6 | E3: 0－10 | F3: 4.299658061 | G3: 12 | H3: 0－10 | I3: 61.11393135 | J3: 18 | K3: 0－10 | L3: 4.178321459 | N3: 降雨強度式
B4: 10－20 | C4: 2.682809147 | E4: 10－20 | F4: 4.385546434 | H4: 10－20 | I4: 34.73458078 | K4: 10－20 | L4: 4.102007462
B5: 20－30 | C5: 2.709136205 | E5: 20－30 | F5: 4.475810876 | H5: 20－30 | I5: 25.42857874 | K5: 20－30 | L5: 4.029055322 | N5: 4
B6: 30－40 | C6: 2.736114724 | E6: 30－40 | F6: 4.570817382 | H6: 30－40 | I6: 20.48090169 | K6: 30－40 | L6: 3.959235172
B7: 40－50 | C7: 2.763770801 | E7: 40－50 | F7: 4.670975238 | H7: 40－50 | I7: 17.35543445 | K7: 40－50 | L7: 3.892338159 | O7: タルボット式 I = a / ( t + b)
B8: 50－60 | C8: 2.792131991 | E8: 50－60 | F8: 4.776743747 | H8: 50－60 | I8: 15.17880179 | K8: 50－60 | L8: 3.828174066 | O8: シャーマン式 I = a / tn
A9: 1 | B9: 0－10 | C9: 2.821227408 | D9: 7 | E9: 0－10 | F9: 4.888640246 | G9: 13 | H9: 0－10 | I9: 13.56413255 | J9: 19 | K9: 0－10 | L9: 3.766569245 | O9: 久野・石黒 I = a / (t0.5 + b)
B10: 10－20 | C10: 2.851087843 | E10: 10－20 | F10: 5.007249749 | H10: 10－20 | I10: 12.31203351 | K10: 10－20 | L10: 3.70736483 | O10: クリーブランド I = a / (tn + b)
B11: 20－30 | C11: 2.881745886 | E11: 20－30 | F11: 5.133236596 | H11: 20－30 | I11: 11.30863867 | K11: 20－30 | L11: 3.650415171 | O11: 久野・石黒変形 任意のn
B12: 30－40 | C12: 2.913236064 | E12: 30－40 | F12: 5.26735863 | H12: 30－40 | I12: 10.48389453 | K12: 30－40 | L12: 3.595586473
B13: 40－50 | C13: 2.945594987 | E13: 40－50 | F13: 5.41048456 | H13: 40－50 | I13: 9.792186107 | K13: 40－50 | L13: 3.542755591
B14: 50－60 | C14: 2.978861513 | E14: 50－60 | F14: 5.563615396 | H14: 50－60 | I14: 9.202452608 | K14: 50－60 | L14: 3.491808979 | O14: 降雨強度式
A15: 2 | B15: 0－10 | C15: 3.013076923 | D15: 8 | E15: 0－10 | F15: 5.727911113 | G15: 14 | H15: 0－10 | I15: 8.692763704 | J15: 20 | K15: 0－10 | L15: 3.44264176 | O15: a
B16: 10－20 | C16: 3.048285121 | E16: 10－20 | F16: 5.904724136 | H16: 10－20 | I16: 8.247165069 | K16: 10－20 | L16: 3.395156899 | O16: b
B17: 20－30 | C17: 3.084532845 | E17: 20－30 | F17: 6.095641748 | H17: 20－30 | I17: 7.85375406 | K17: 20－30 | L17: 3.349264476 | O17: n
B18: 30－40 | C18: 3.121869907 | E18: 30－40 | F18: 6.302540391 | H18: 30－40 | I18: 7.503458085 | K18: 30－40 | L18: 3.304881034
B19: 40－50 | C19: 3.160349451 | E19: 40－50 | F19: 6.527655963 | H19: 40－50 | I19: 7.189232386 | K19: 40－50 | L19: 3.261929 | N19: 1
B20: 50－60 | C20: 3.200028246 | E20: 50－60 | F20: 6.773675937 | H20: 50－60 | I20: 6.905517698 | K20: 50－60 | L20: 3.220336171
A21: 3 | B21: 0－10 | C21: 3.240967001 | D21: 9 | E21: 0－10 | F21: 7.043861728 | G21: 15 | H21: 0－10 | I21: 6.647864201 | J21: 21 | K21: 0－10 | L21: 3.180035244
B22: 10－20 | C22: 3.283230724 | E22: 10－20 | F22: 7.34221367 | H22: 10－20 | I22: 6.412664939 | K22: 10－20 | L22: 3.140963409
B23: 20－30 | C23: 3.326889112 | E23: 20－30 | F23: 7.673697172 | H23: 20－30 | I23: 6.196963077 | K23: 20－30 | L23: 3.103061969
B24: 30－40 | C24: 3.372016993 | E24: 30－40 | F24: 8.04455851 | H24: 30－40 | I24: 5.998310102 | K24: 30－40 | L24: 3.066276004
B25: 40－50 | C25: 3.418694813 | E25: 40－50 | F25: 8.462775099 | H25: 40－50 | I25: 5.814659831 | K25: 40－50 | L25: 3.030554071
B26: 50－60 | C26: 3.467009185 | E26: 50－60 | F26: 8.938712873 | H26: 50－60 | I26: 5.644288076 | K26: 50－60 | L26: 2.995847927
A27: 4 | B27: 0－10 | C27: 3.517053499 | D27: 10 | E27: 0－10 | F27: 9.48611238 | G27: 16 | H27: 0－10 | I27: 5.485730947 | J27: 22 | K27: 0－10 | L27: 2.962112278
B28: 10－20 | C28: 3.568928615 | E28: 10－20 | F28: 10.12361503 | H28: 10－20 | I28: 5.33773693 | K28: 10－20 | L28: 2.929304558
B29: 20－30 | C29: 3.622743635 | E29: 20－30 | F29: 10.87721353 | H29: 20－30 | I29: 5.199229247 | K29: 20－30 | L29: 2.897384721
B30: 30－40 | C30: 3.678616781 | E30: 30－40 | F30: 11.78436124 | H30: 30－40 | I30: 5.069276016 | K30: 30－40 | L30: 2.866315052
B31: 40－50 | C31: 3.736676383 | E31: 40－50 | F31: 12.90123511 | H31: 40－50 | I31: 4.947066362 | K31: 40－50 | L31: 2.836060005
B32: 50－60 | C32: 3.797062003 | E32: 50－60 | F32: 14.31643329 | H32: 50－60 | I32: 4.831891146 | K32: 50－60 | L32: 2.806586037
A33: 5 | B33: 0－10 | C33: 3.859925717 | D33: 11 | E33: 0－10 | F33: 16.17902425 | G33: 17 | H33: 0－10 | I33: 4.723127292 | J33: 23 | K33: 0－10 | L33: 2.777861475
B34: 10－20 | C34: 3.925433573 | E34: 10－20 | F34: 18.76256068 | H34: 10－20 | I34: 4.620224944 | K34: 10－20 | L34: 2.749856381
B35: 20－30 | C35: 3.993767264 | E35: 20－30 | F35: 22.63489926 | H35: 20－30 | I35: 4.522696878 | K35: 20－30 | L35: 2.722542434
B36: 30－40 | C36: 4.065126049 | E36: 30－40 | F36: 29.2235613 | H36: 30－40 | I36: 4.430109716 | K36: 30－40 | L36: 2.69589282
B37: 40－50 | C37: 4.139728968 | E37: 40－50 | F37: 43.62842291 | H37: 40－50 | I37: 4.342076583 | K37: 40－50 | L37: 2.669882134
B38: 50－60 | C38: 4.217817404 | E38: 50－60 | F38: 127.0020013 | H38: 50－60 | I38: 4.258250956 | K38: 50－60 | L38: 2.644486284

Sheet 流入量定義
A1: ※流出計算を実行する場合、記入する必要はありません。
A2: 時刻 | B2: 行為後流入量
A3: 00:00:00
A4: 00:10:00
A5: 00:20:00
A6: 00:30:00
A7: 00:40:00
A8: 00:50:00
A9: 01:00:00
A10: 01:10:00
A11: 01:20:00
A12: 01:30:00
A13: 01:40:00
A14: 01:50:00
A15: 02:00:00
A16: 02:10:00
A17: 02:20:00
A18: 02:30:00
A19: 02:40:00
A20: 02:50:00
A21: 03:00:00
A22: 03:10:00
A23: 03:20:00
A24: 03:30:00
A25: 03:40:00
A26: 03:50:00
A27: 04:00:00
A28: 04:10:00
A29: 04:20:00
A30: 04:30:00
A31: 04:40:00
A32: 04:50:00
A33: 05:00:00
A34: 05:10:00
A35: 05:20:00
A36: 05:30:00
A37: 05:40:00
A38: 05:50:00
A39: 06:00:00
A40: 06:10:00
A41: 06:20:00
A42: 06:30:00
A43: 06:40:00
A44: 06:50:00
A45: 07:00:00
A46: 07:10:00
A47: 07:20:00
A48: 07:30:00
A49: 07:40:00
A50: 07:50:00
A51: 08:00:00
A52: 08:10:00
A53: 08:20:00
A54: 08:30:00
A55: 08:40:00
A56: 08:50:00
A57: 09:00:00
A58: 09:10:00
A59: 09:20:00
A60: 09:30:00
A61: 09:40:00
A62: 09:50:00
A63: 10:00:00
A64: 10:10:00
A65: 10:20:00
A66: 10:30:00
A67: 10:40:00
A68: 10:50:00
A69: 11:00:00
A70: 11:10:00
A71: 11:20:00
A72: 11:30:00
A73: 11:40:00
A74: 11:50:00
A75: 12:00:00
A76: 12:10:00
A77: 12:20:00
A78: 12:30:00
A79: 12:40:00
A80: 12:50:00
A81: 13:00:00
A82: 13:10:00
A83: 13:20:00
A84: 13:30:00
A85: 13:40:00
A86: 13:50:00
A87: 14:00:00
A88: 14:10:00
A89: 14:20:00
A90: 14:30:00
A91: 14:40:00
A92: 14:50:00
A93: 15:00:00
A94: 15:10:00
A95: 15:20:00
A96: 15:30:00
A97: 15:40:00
A98: 15:50:00
A99: 16:00:00
A100: 16:10:00
A101: 16:20:00
A102: 16:30:00
A103: 16:40:00
A104: 16:50:00
A105: 17:00:00
A106: 17:10:00
A107: 17:20:00
A108: 17:30:00
A109: 17:40:00
A110: 17:50:00
A111: 18:00:00
A112: 18:10:00
A113: 18:20:00
A114: 18:30:00
A115: 18:40:00
A116: 18:50:00
A117: 19:00:00
A118: 19:10:00
A119: 19:20:00
A120: 19:30:00
A121: 19:40:00
A122: 19:50:00
A123: 20:00:00
A124: 20:10:00
A125: 20:20:00
A126: 20:30:00
A127: 20:40:00
A128: 20:50:00
A129: 21:00:00
A130: 21:10:00
A131: 21:20:00
A132: 21:30:00
A133: 21:40:00
A134: 21:50:00
A135: 22:00:00
A136: 22:10:00
A137: 22:20:00
A138: 22:30:00
A139: 22:40:00
A140: 22:50:00
A141: 23:00:00
A142: 23:10:00
A143: 23:20:00
A144: 23:30:00
A145: 23:40:00
A146: 23:50:00
A147: 24:00

Sheet 01流出計算（Q-Tグラフ）
B2: 流 出 計 算 条 件 | H2: 流 出 計 算 結 果
H4: 時刻 | I4: 行為前流入量 | J4: 行為後流入量 | K4: 降雨強度
B5: 1 | C5: 流出計算の実行
C7: 行為面積 | D7: =5699.32/10000 -> 0.569932 | E7: ha
C9: 降雨量
C10: ※「降雨強度」シートに基準降雨を入力してください。（都道府県知事等により公示されている「基準降雨」の値に変更してください。）
C15: 流出係数
C16: 行為前
C17: 行為後
C18: ※「流出係数算出」シートで算出した諸元が入力されていますが、必要に応じて申請図書記載値に上書きすることができます。
C21: 流出計算結果の指定
C23: ※「流入量定義」シートに計算された流出計算結果（行為後）を入力してください。
C27: 許容放流量 | E27: m3/s

Sheet 浸透施設能力
B2: 浸透施設能力算定結果 | O2: 空隙貯留量算定結果
B3: 浸透マス | C3: 浸透トレンチ | G3: 透水性舗装 | H3: その他 | I3: 浸透施設能力算定結果 | O3: 浸透マス | P3: 浸透トレンチ | R3: 透水性舗装 | S3: その他 | T3: 空隙貯留量算定結果
B4: =SUM(K11:L20) -> 0 | C4: =SUM(L25:L34) -> 0 | G4: =SUM(L39:L48) -> 0 | H4: =SUM(L53:L62) -> 0 | I4: =B4+C4+G4+H4 -> 0 | J4: ｍ3/ｈｒ | O4: =SUM(M11:M20) -> 0 | P4: =SUM(M25:M34) -> 0 | R4: =SUM(M39:M48)/100 -> 0 | S4: =SUM(M53:M62)/100 -> 0 | T4: =O4+P4+R4+S4 -> 0 | U4: ｍ3
I5: =I4/3600 -> 0 | J5: ｍ3/s
H6: （開発エリア全体に対する全浸透施設の浸透強度: | I6: =I5/流出係数算出!G8*3600/10 ->  | J6: mm/hr)
B7: 条件設定 | O7: 条件設定
B8: 【浸透マス】 | C8: 単位設計浸透能（ｍ3/ｈｒ/個） | G8: 設置数量 （個） | H8: 影響係数 | O8: 【浸透マス】 1個あたり | P8: ます部 | Q8: 砕石部
C9: 比浸透量（㎡） | D9: 飽和透水係数 | F9: 飽和透水係数 （m/hr） | H9: （1） | I9: （2） | J9: （3） | P9: 体積 （ｍ3） | Q9: 体積 （ｍ3） | R9: 空隙率 （％）
H10: 内容（１） | I10: 内容（２） | J10: 内容（３） | X10: 単位リスト
B11: 1 | F11: =IF(E11=$X$11,0,IF(E11=$X$14,D11,IF(E11=$X$13,D11*3600,D11*3600/100))) -> 0 | H11: 0.9 | I11: 0.9 | J11: 0.8 | L11: =$C11*$F11*$G11*$H11*$I11*$J11 -> 0 | M11: =($P11+$Q11*$R11/100)*$G11 -> 0 | O11: 1
B12: 2 | F12: =IF(E12=$X$11,0,IF(E12=$X$14,D12,IF(E12=$X$13,D12*3600,D12*3600/100))) -> 0 | H12: 0.9 | I12: 0.9 | J12: 1 | L12: =$C12*$F12*$G12*$H12*$I12*$J12 -> 0 | M12: =($P12+$Q12*$R12/100)*$G12 -> 0 | O12: 2 | X12: cm/s
B13: 3 | F13: =IF(E13=$X$11,0,IF(E13=$X$14,D13,IF(E13=$X$13,D13*3600,D13*3600/100))) -> 0 | H13: 0.9 | I13: 0.9 | J13: 1 | L13: =$C13*$F13*$G13*$H13*$I13*$J13 -> 0 | M13: =($P13+$Q13*$R13/100)*$G13 -> 0 | O13: 3 | X13: m/s
B14: 4 | F14: 0 | H14: 0.9 | I14: 0.9 | J14: 1 | L14: 0 | M14: =($P14+$Q14*$R14/100)*$G14 -> 0 | O14: 4 | X14: m/hr
B15: 5 | F15: 0 | H15: 0.9 | I15: 0.9 | J15: 1 | L15: 0 | M15: =($P15+$Q15*$R15/100)*$G15 -> 0 | O15: 5
B16: 6 | F16: 0 | H16: 0.9 | I16: 0.9 | J16: 1 | L16: 0 | M16: 0 | O16: 6
B17: 7 | F17: 0 | H17: 0.9 | I17: 0.9 | J17: 1 | L17: 0 | M17: 0 | O17: 7
B18: 8 | F18: 0 | H18: 0.9 | I18: 0.9 | J18: 1 | L18: 0 | M18: 0 | O18: 8
B19: 9 | F19: 0 | H19: 0.9 | I19: 0.9 | J19: 1 | L19: 0 | M19: 0 | O19: 9
B20: 10 | F20: 0 | H20: 0.9 | I20: 0.9 | J20: 1 | L20: 0 | M20: 0 | O20: 10
B22: 【浸透トレンチ】 | C22: 単位設計浸透能（ｍ3/ｈｒ/m） | G22: 設置数量 （ｍ） | H22: 影響係数 | O22: 【浸透トレンチ】 1mあたり | P22: 浸透管部 | Q22: 砕石部
C23: 比浸透量（㎡） | D23: 飽和透水係数 | F23: 飽和透水係数 （m/hr） | H23: （1） | I23: （2） | J23: （3） | P23: 体積 （ｍ3） | Q23: 体積 （ｍ3） | R23: 空隙率 （％）
H24: 内容（１） | I24: 内容（２） | J24: 内容（３）
B25: 1 | F25: =IF(E25=$X$11,0,IF(E25=$X$14,D25,IF(E25=$X$13,D25*3600,D25*3600/100))) -> 0 | H25: 0.9 | I25: 0.9 | J25: 1 | L25: =$C25*$F25*$G25*$H25*$I25*$J25 -> 0 | M25: =($P25+$Q25*$R25/100)*$G25 -> 0 | O25: 1
B26: 2 | F26: =IF(E26=$X$11,0,IF(E26=$X$14,D26,IF(E26=$X$13,D26*3600,D26*3600/100))) -> 0 | H26: 0.9 | I26: 0.9 | J26: 1 | L26: =$C26*$F26*$G26*$H26*$I26*$J26 -> 0 | M26: =($P26+$Q26*$R26/100)*$G26 -> 0 | O26: 2
B27: 3 | F27: =IF(E27=$X$11,0,IF(E27=$X$14,D27,IF(E27=$X$13,D27*3600,D27*3600/100))) -> 0 | H27: 0.9 | I27: 0.9 | J27: 1 | L27: 0 | M27: 0 | O27: 3
B28: 4 | F28: 0 | H28: 0.9 | I28: 0.9 | J28: 1 | L28: 0 | M28: 0 | O28: 4
B29: 5 | F29: 0 | H29: 0.9 | I29: 0.9 | J29: 1 | L29: 0 | M29: 0 | O29: 5
B30: 6 | F30: 0 | H30: 0.9 | I30: 0.9 | J30: 1 | L30: 0 | M30: 0 | O30: 6
B31: 7 | F31: 0 | H31: 0.9 | I31: 0.9 | J31: 1 | L31: 0 | M31: 0 | O31: 7
B32: 8 | F32: 0 | H32: 0.9 | I32: 0.9 | J32: 1 | L32: 0 | M32: 0 | O32: 8
B33: 9 | F33: 0 | H33: 0.9 | I33: 0.9 | J33: 1 | L33: 0 | M33: 0 | O33: 9
B34: 10 | F34: 0 | H34: 0.9 | I34: 0.9 | J34: 1 | L34: 0 | M34: 0 | O34: 10
B36: 【透水性舗装】 | C36: 単位設計浸透能（ｍ3/ｈｒ/㎡） | G36: 設置数量 （㎡） | H36: 影響係数 | O36: 【透水性舗装】 1m2あたり | P36: 体積 （ｍ3） | Q36: 空隙率 （％）
C37: 比浸透量（㎡） | D37: 飽和透水係数 | F37: 飽和透水係数 （m/hr） | H37: （1） | I37: （2） | J37: （3）
H38: 内容（１） | I38: 内容（２） | J38: 内容（３）
B39: 1 | F39: =IF(E39=$X$11,0,IF(E39=$X$14,D39,IF(E39=$X$13,D39*3600,D39*3600/100))) -> 0 | H39: 0.9 | I39: 0.9 | J39: 0.1 | L39: =$C39*$F39*$G39*$H39*$I39*$J39 -> 0 | M39: =$G39*($P39*Q39) -> 0 | O39: 1
B40: 2 | F40: =IF(E40=$X$11,0,IF(E40=$X$14,D40,IF(E40=$X$13,D40*3600,D40*3600/100))) -> 0 | H40: 0.9 | I40: 0.9 | J40: 1 | L40: =$C40*$F40*$G40*$H40*$I40*$J40 -> 0 | M40: =$G40*($P40*Q40) -> 0 | O40: 2
B41: 3 | F41: =IF(E41=$X$11,0,IF(E41=$X$14,D41,IF(E41=$X$13,D41*3600,D41*3600/100))) -> 0 | H41: 0.9 | I41: 0.9 | J41: 1 | L41: 0 | M41: =$G41*($P41*Q41) -> 0 | O41: 3
B42: 4 | F42: 0 | H42: 0.9 | I42: 0.9 | J42: 1 | L42: 0 | M42: =$G42*($P42*Q42) -> 0 | O42: 4
B43: 5 | F43: 0 | H43: 0.9 | I43: 0.9 | J43: 1 | L43: 0 | M43: =$G43*($P43*Q43) -> 0 | O43: 5
B44: 6 | F44: 0 | H44: 0.9 | I44: 0.9 | J44: 1 | L44: 0 | M44: =$G44*($P44*Q44) -> 0 | O44: 6
B45: 7 | F45: 0 | H45: 0.9 | I45: 0.9 | J45: 1 | L45: 0 | M45: =$G45*($P45*Q45) -> 0 | O45: 7
B46: 8 | F46: 0 | H46: 0.9 | I46: 0.9 | J46: 1 | L46: 0 | M46: =$G46*($P46*Q46) -> 0 | O46: 8
B47: 9 | F47: 0 | H47: 0.9 | I47: 0.9 | J47: 1 | L47: 0 | M47: =$G47*($P47*Q47) -> 0 | O47: 9
B48: 10 | F48: 0 | H48: 0.9 | I48: 0.9 | J48: 1 | L48: 0 | M48: =$G48*($P48*Q48) -> 0 | O48: 10
B50: 【その他】 | C50: 単位設計浸透能（ｍ3/ｈｒ/単位） | G50: 設置数量 （単位） | H50: 影響係数 | O50: 【その他】 1単位あたり | P50: 体積 （ｍ3） | Q50: 空隙率 （％）
C51: 比浸透量（㎡） | D51: 飽和透水係数 | F51: 飽和透水係数 （m/hr） | H51: （1） | I51: （2） | J51: （3）
H52: 内容（１） | I52: 内容（２） | J52: 内容（３）
B53: 1 | F53: =IF(E53=$X$11,0,IF(E53=$X$14,D53,IF(E53=$X$13,D53*3600,D53*3600/100))) -> 0 | H53: 0.9 | I53: 0.9 | L53: =$C53*$F53*$G53*$H53*$I53*$J53 -> 0 | M53: =$G53*($P53*Q53) -> 0 | O53: 1
B54: 2 | F54: =IF(E54=$X$11,0,IF(E54=$X$14,D54,IF(E54=$X$13,D54*3600,D54*3600/100))) -> 0 | H54: 0.9 | I54: 0.9 | L54: 0 | M54: 0 | O54: 2
B55: 3 | F55: =IF(E55=$X$11,0,IF(E55=$X$14,D55,IF(E55=$X$13,D55*3600,D55*3600/100))) -> 0 | H55: 0.9 | I55: 0.9 | L55: 0 | M55: 0 | O55: 3
B56: 4 | F56: 0 | H56: 0.9 | I56: 0.9 | L56: 0 | M56: 0 | O56: 4
B57: 5 | F57: 0 | H57: 0.9 | I57: 0.9 | L57: 0 | M57: 0 | O57: 5
B58: 6 | F58: 0 | H58: 0.9 | I58: 0.9 | L58: 0 | M58: 0 | O58: 6
B59: 7 | F59: 0 | H59: 0.9 | I59: 0.9 | L59: 0 | M59: 0 | O59: 7
B60: 8 | F60: 0 | H60: 0.9 | I60: 0.9 | L60: 0 | M60: 0 | O60: 8
B61: 9 | F61: 0 | H61: 0.9 | I61: 0.9 | L61: 0 | M61: 0 | O61: 9
B62: 10 | F62: 0 | H62: 0.9 | I62: 0.9 | L62: 0 | M62: 0 | O62: 10

Sheet 浸透施設能力（貯留浸透モデル_道路管理者用）
A2: 透水性舗装 | J2: 部分を入力して下さい
A3: 【「道路路面雨水処理マニュアル(案)」に対応した計算シート】
B4: 基本諸元
B5: 設置数量(舗装面積) (m2)
B6: 飽和透水係数 （m/hr） | I6: 上層路盤での貯留率(%) | K6: =M17 -> 0
B7: 比浸透量算定 定数 K=aH+b | C7: a | I7: 下層路盤での貯留率(%) | K7: =M18 -> 0
C8: b | I8: 下層路盤厚(mm) | K8: =D18 -> 0
B9: 目詰まり 係数 | C9: C1 | I9: 下層路盤での貯留量(mm) | K9: =N18 -> 0
C10: C2 | I10: 貯留量の合計(mm) | K10: =N19 -> 0
B12: 貯留率と水拘束率
D13: 厚さ(mm) | E13: 空気間隙率 (%) | F13: 空気間隙率との関係 | H13: 水拘束率 (%) | I13: 水拘束量 (mm) | J13: 貯留率 (%) | K13: 貯留量 (mm) | M13: STEP2での 貯留率 (%) | N13: STEP2での 貯留量 (mm)
B14: 関係式 | D14: a | E14: b | F14: b' | H14: c | I14: a×c/100 | J14: d (=b+b') | K14: a×d/100 | M14: d-c | N14: a×(d-c)/100
B15: 表層 | I15: =D15*H15/100 -> 0 | J15: =E15+F15 -> 0 | K15: =D15*J15/100 -> 0 | M15: =J15-H15 -> 0 | N15: =D15*(J15-H15)/100 -> 0
B16: 中間層・基層 | I16: =D16*H16/100 -> 0 | J16: =E16+F16 -> 0 | K16: =D16*J16/100 -> 0 | M16: =J16-H16 -> 0 | N16: =D16*(J16-H16)/100 -> 0
B17: 上層路盤 | I17: =D17*H17/100 -> 0 | J17: =E17+F17 -> 0 | K17: =D17*J17/100 -> 0 | M17: =J17-H17 -> 0 | N17: =D17*(J17-H17)/100 -> 0
B18: 下層路盤 | I18: =D18*H18/100 -> 0 | J18: =E18+F18 -> 0 | K18: =D18*J18/100 -> 0 | M18: =J18-H18 -> 0 | N18: =D18*(J18-H18)/100 -> 0
B19: 合計 | D19: =SUM(D15:D18) -> 0 | E19: - | F19: - | H19: - | I19: =SUM(I15:I18) -> 0 | J19: - | K19: =SUM(K15:K18) -> 0 | M19: - | N19: =SUM(N15:N18) -> 0
A21: 浸透マス・トレンチ
B23: 浸透能諸元 | M23: 空隙貯留諸元
B24: 【浸透マス】 | D24: 単位設計浸透能（ｍ3/ｈｒ/個） | H24: 設置数量 （個） | I24: 設計水頭 (m) | J24: 影響係数 | M24: 【浸透マス】 1個あたり | N24: ます部 | O24: 砕石部 | R24: Σ | S24: 設計浸透量 | T24: 平均設計水頭 | U24: 設計空隙貯留量
D25: 比浸透量（㎡） | E25: 飽和透水係数 | G25: 飽和透水係数 （m/hr） | J25: 地下水位 係数 | K25: 目詰まり 係数 | N25: 体積 （ｍ3） | O25: 体積 （ｍ3） | P25: 空隙率 （％）
Q26: 小計 | Y26: 単位リスト
B27: 1 | F27: m/hr | G27: 0.122 | J27: 1 | K27: 1 | M27: 1 | R27: =D27*G27*H27*I27*J27*K27 -> 0 | S27: =D27*G27*H27*J27*K27 -> 0 | U27: =H27*(N27+O27*P27/100) -> 0 | Y27: 単位
B28: 2 | F28: 単位 | G28: =IF(F28=Y28,"0.00",IF(F28=Y31,E28,IF(F28=Y30,E28/3600,E28/360000))) -> 0 | J28: 1 | K28: 1 | M28: 2 | R28: =D28*G28*H28*I28*J28*K28 -> 0 | S28: =D28*G28*H28*J28*K28 -> 0 | U28: 0 | Y28: cm/s
B29: 3 | F29: 単位 | G29: 0 | J29: 1 | K29: 1 | M29: 3 | R29: 0 | S29: 0 | U29: 0 | Y29: m/s
B30: 4 | F30: 単位 | G30: 0 | J30: 1 | K30: 1 | M30: 4 | R30: 0 | S30: 0 | U30: 0 | Y30: m/hr
B31: 5 | F31: 単位 | G31: 0 | J31: 1 | K31: 1 | M31: 5 | R31: 0 | S31: 0 | U31: 0
B32: 6 | F32: 単位 | G32: 0 | J32: 1 | K32: 1 | M32: 6 | R32: 0 | S32: 0 | U32: 0
B33: 7 | F33: 単位 | G33: 0 | J33: 1 | K33: 1 | M33: 7 | R33: 0 | S33: 0 | U33: 0
B34: 8 | F34: 単位 | G34: 0 | J34: 1 | K34: 1 | M34: 8 | R34: 0 | S34: 0 | U34: 0
B35: 9 | F35: 単位 | G35: 0 | J35: 1 | K35: 1 | M35: 9 | R35: 0 | S35: 0 | U35: 0
B36: 10 | F36: 単位 | G36: 0 | J36: 1 | K36: 1 | M36: 10 | R36: 0 | S36: 0 | U36: 0
B38: 【浸透トレンチ】 | D38: 単位設計浸透能（ｍ3/ｈｒ/m） | H38: 設置数量 （ｍ） | I38: 設計水頭 (m) | J38: 影響係数 | M38: 【浸透トレンチ】 1mあたり | N38: 浸透管部 | O38: 砕石部
D39: 比浸透量（㎡） | E39: 飽和透水係数 | G39: 飽和透水係数 （m/hr） | J39: 地下水位 係数 | K39: 目詰まり 係数 | N39: 体積 （ｍ3） | O39: 体積 （ｍ3） | P39: 空隙率 （％）
B41: 1 | F41: m/hr | G41: =IF(F41=$X$11,0,IF(F41=$X$14,E41,IF(F41=$X$13,E41/3600,E41/360000))) -> 0 | J41: 0.9 | K41: 1 | M41: 1 | R41: =D41*G41*H41*I41*J41*K41 -> 0 | S41: =D41*G41*H41*J41*K41 -> 0 | U41: =H41*(N41+O41*P41/100) -> 0
B42: 2 | F42: 単位 | G42: =IF(F42=Y42,"0",IF(F42=Y45,E42,IF(F42=Y44,E42/3600,E42/360000))) -> 0 | J42: 1 | K42: 1 | M42: 2 | R42: =D42*G42*H42*I42*J42*K42 -> 0 | S42: =D42*G42*H42*J42*K42 -> 0 | U42: 0
B43: 3 | F43: 単位 | G43: 0 | J43: 1 | K43: 1 | M43: 3 | R43: 0 | S43: 0 | U43: 0
B44: 4 | F44: 単位 | G44: 0 | J44: 1 | K44: 1 | M44: 4 | R44: 0 | S44: 0 | U44: 0
B45: 5 | F45: 単位 | G45: 0 | J45: 1 | K45: 1 | M45: 5 | R45: 0 | S45: 0 | U45: 0
B46: 6 | F46: 単位 | G46: 0 | J46: 1 | K46: 1 | M46: 6 | R46: 0 | S46: 0 | U46: 0
B47: 7 | F47: 単位 | G47: 0 | J47: 1 | K47: 1 | M47: 7 | R47: 0 | S47: 0 | U47: 0
B48: 8 | F48: 単位 | G48: 0 | J48: 1 | K48: 1 | M48: 8 | R48: 0 | S48: 0 | U48: 0
B49: 9 | F49: 単位 | G49: 0 | J49: 1 | K49: 1 | M49: 9 | R49: 0 | S49: 0 | U49: 0
B50: 10 | F50: 単位 | G50: 0 | J50: 1 | K50: 1 | M50: 10 | R50: 0 | S50: 0 | U50: 0
B52: 統合諸元
B53: 設計浸透能(m3/hr) | D53: =S55 -> 0
B54: 平均設計水頭(m) | D54: =IF(D53>0,+T55,0) -> 0
B55: 設計空隙貯留量(m3) | D55: =U55 -> 0 | Q55: 総合計 | R55: =R57+R58 -> 0 | S55: =S57+S58 -> 0 | T55: =R55/S55 ->  | U55: =U57+U58 -> 0
Q57: マス | R57: =SUM(R27:R36) -> 0 | S57: =SUM(S27:S36) -> 0 | T57: =R57/S57 ->  | U57: =SUM(U27:U36) -> 0
Q58: トレンチ | R58: =SUM(R41:R50) -> 0 | S58: =SUM(S41:S50) -> 0 | T58: =R58/S58 ->  | U58: =SUM(U41:U50) -> 0

Sheet 比浸透量
A1: 5 | AC1: 1
C4: 透水性舗装
C5: 浸透側溝および浸透トレンチ
C6: 円筒ます（側面および底面）
C7: 円筒ます（底面）
C8: 正方形ます（側面および底面）
C9: 正方形ます（底面）
C10: 矩形の桝
C13: H：設計水頭(m)
C14: W：施設幅(m)
C15: D：施設直径(m)
C16: L：施設延長(m) | D16: 200
C18: K：比浸透量 | D18: -0.283
B24: 施設 | D24: 透水性舗装 （浸透池） | E24: 浸透側溝 および 浸透トレンチ | F24: 円筒ます | H24: 正方形ます | J24: 矩形 のます
B25: 浸透面 | D25: 底面 | E25: 側面 および 底面 | F25: 側面 および 底面 | G25: 底面 | H25: 側面 および 底面 | I25: 底面 | J25: 側面 および 底面
B26: 模式図
B27: H：設計水頭（m） | C27: 1 | D27: =$D13 -> 0 | E27: =$D13 -> 0 | F27: =$D13 -> 0 | G27: =$D13 -> 0 | H27: =$D13 -> 0 | I27: 0 | J27: 0
B28: W：施設幅(m) | D28: =$D14 -> 0 | E28: =$D14 -> 0 | F28: 0 | G28: 0 | H28: 0 | I28: 0 | J28: 0
B29: D：施設直径 | D29: =$D15 -> 0 | E29: =$D15 -> 0 | F29: 0 | G29: 0 | H29: 0 | I29: 0 | J29: 0
B30: L：施設延長(m) | D30: =$D16 -> 200 | E30: =$D16 -> 200 | F30: 200 | G30: 200 | H30: 200 | I30: 200 | J30: 200
B31: 係数 | C31: a | D31: 0.014 | E31: 3.093 | F31: =IF(F29<0.2,"適用外",IF(F29<=1,0.475*F29+0.945,IF(F29<=10,6.244*F29+2.853,"適用外"))) -> 適用外 | G31: =IF(G29<0.3,"適用外",IF(G29<=1,1.497*G29-0.1,IF(G29<=10,2.556*G29-2.052,"適用外"))) -> 適用外 | H31: =IF(H28<=1,0.12*H28+0.985,IF(H28<=10,-0.453*H28^2+8.289*H28+0.753,IF(H28<=80,0.747*H28+21.355,"適用外"))) -> 0.985 | I31: =IF(I28<=1,1.676*I28-0.137,IF(I28<=10,-0.204*I28^2+3.166*I28-1.936,IF(I28<=80,1.265*I28-15.67,"適用外"))) -> -0.137 | J31: =3.297*J30+1.971*J28+4.663 -> 664.063
C32: b | D32: 1.287 | E32: =1.34*E28+0.677 -> 0.677 | F32: =IF(F29<0.2,"適用外",IF(F29<=1,6.07*F29+1.01,IF(F29<=10,0.93*F29^2+1.606*F29-0.773,"適用外"))) -> 適用外 | G32: =IF(G29<0.3,"適用外",IF(G29<=1,1.13*G29^2+0.638*G29-0.011,IF(G29<=10,0.924*G29^2+0.993*G29-0.087,"適用外"))) -> 適用外 | H32: =IF(H28<=1,7.837*H28+0.82,IF(H28<=10,1.458*H28^2+1.27*H28+0.362,IF(H28<=80,1.263*H28^2+4.295*H28-7.649,"適用外"))) -> 0.82 | I32: =IF(I28<=1,1.496*I28^2+I28*0.671-0.015,IF(I28<=10,1.345*I28^2+0.736*I28+0.251,IF(I28<=80,1.259*I28^2+2.336*I28-8.13,"適用外"))) -> -0.015 | J32: =(1.401*J28+0.684)*J30+1.214*J28-0.834 -> 135.966
C33: c | D33: - | E33: - | F33: =IF(F29<0.2,"適用外",IF(F29<=1,2.57*F29-0.188,IF(F29<=10,"-","適用外"))) -> 適用外 | G33: =IF(G28<=1,2.858*G28-0.283,IF(G28<80,"-","適用外")) -> -0.283 | H33: =IF(H28<=1,2.858*H28-0.283,IF(H28<=80,"-","適用外")) -> -0.283 | I33: - | J33: -
B34: 比浸透量 | C34: K | D34: =IF(D27<=1.5,D31*D27+D32,"適用外") -> 1.287 | E34: =IF(AND(E27<=1.5,E28<=1.5),E31*E27+E32,"適用外") -> 0.677 | F34: =IF(F29<0.2,"適用外",IF(F29<=1,F31*F27^2+F32*F27+F33,IF(F29<=10,F31*F27+F32,"適用外"))) -> 適用外 | G34: =IF(G29<0.3,"適用外",IF(G29<10,G31*G29+G32,"適用外")) -> 適用外 | H34: =IF(H28<=1,H31*H27^2+H32*H27+H33,IF(H28<=80,H31*H27+H32,"適用外")) -> -0.283 | I34: =IF(I28<=80,I31*I27+I32,"適用外") -> -0.015 | J34: =IF(AND(J27<=1.5,J28<=4,J30<=200),J31*J27+J32,"適用外") -> 135.966

Sheet 02流出計算（QT-Sグラフ）
B2: 流 出 計 算 条 件 | H2: 流 出 計 算 結 果
H4: 時刻 | I4: 浸透考慮前 | J4: 浸透考慮後
B5: 1 | C5: 浸透施設なし
C7: 浸透施設あり
C8: ※「浸透施設能力」シートに浸透施設諸元を入力してください。
C11: 浸透施設あり
C12: （貯留浸透モデル_道路管理者用）
C13: ※「浸透施設能力（貯留浸透モデル_道路管理者用）」シートに浸透施設諸元を入力してください。

Sheet 03-①調整池容量の概算
A1: ※①自然調節方式により調整地容量を概算する場合に入力してください
B3: 入 力 条 件
C5: 行為後ピーク流入量 | E5: =MAX('02流出計算（QT-Sグラフ）'!$J$5:$J$149) -> 0 | F5: m3/s
C6: （浸透考慮後）
B8: 調整池諸元
C9: 許容放流量 | E9: =MAX('01流出計算（Q-Tグラフ）'!$I$5:$I$149) -> 0 | F9: m3/s | I9: 概 算 結 果
C10: （行為前ピーク流入量）
J11: 必要容量 | L11: m3/ha
C12: 調整池高 | F12: m
B14: 浸透施設条件 | D14: =IF('02流出計算（QT-Sグラフ）'!$B$5=1,"浸透施設なし",IF('02流出計算（QT-Sグラフ）'!$B$5=2,"浸透施設あり","浸透施設あり（貯留浸透モデル_道路管理者用）")) -> 浸透施設なし | G14: ='02流出計算（QT-Sグラフ）'!$B$5 -> 1 | J14: オリフィス径（円管、直径） | L14: m
Z50: chou

Sheet 04-①調節計算（自然調節方式）
B2: 入 力 条 件
B4: 設 定 調 整 池 諸 元 | K4: 行 為 後 流 入 量 | U4: 計 算 結 果 （時 系 列）
B6: 水深-容量 | G6: 放流口形状 | K6: 行為後ピーク流入量 | M6: =MAX('02流出計算（QT-Sグラフ）'!$J$5:$J$149) -> 0 | N6: m3/s | U6: 時刻 | V6: 行為後流入量 | W6: 浸透考慮後流入量 | X6: 許容放流量 | Y6: 調節後放流量 | Z6: 調整池水位
B7: No | C7: 水深H（m） | D7: 容量V（m3） | G7: （口径） | K7: （浸透考慮後） | AA7: 0
B8: 1 | F8: 1 | AA8: 0.9278863044
B9: 2 | G9: 直径 | I9: m | K9: 許容放流量 | M9: =MAX('01流出計算（Q-Tグラフ）'!$I$5:$I$149) -> 0 | N9: m3/s | AA9: 2.718599189
B10: 3 | K10: （行為前ピーク流入量） | AA10: 4.358852701
B11: 4 | P11: 計 算 結 果 | AA11: 5.822470577
B12: 5 | G12: 高さ | I12: m | AA12: 7.14115313
B13: 6 | G13: 幅 | I13: m | AA13: 8.316153015
B14: 7 | P14: 総合評価 | AA14: 9.317014459
B15: 8 | G15: （管底位置） | AA15: 10.1967922
B16: 9 | G16: 池底高から | I16: m | P16: 放流量評価 | AA16: 10.97381008
B17: 10 | AA17: 11.62383105
B18: 11 | P18: 池容量評価 | AA18: 12.19283605
B19: 12 | AA19: 12.69200629
B20: 13 | AA20: 13.13653664
B21: 14 | P21: 最大放流量 | S21: m3/s | AA21: 13.53946938
B22: 15 | AA22: 13.86801377
B23: 16 | P23: 池内最大水深 | S23: m | AA23: 14.16779663
B24: 17 | AA24: 14.44563384
B25: 18 | P25: 池内最大ボリューム | S25: m3 | AA25: 14.70566322
B26: 19 | AA26: 14.95125476
B27: 20 | AA27: 15.18503298
B28: 21 | AA28: 15.4105339
B29: 22 | P29: 許 可 申 請 図 書 の 作 成 | AA29: 15.62441615
B30: 23 | AA30: 15.8263408
B31: 24 | AA31: 16.01897128
B32: 25 | AA32: 16.21012429
B33: 26 | AA33: 16.39952289
B34: 27 | AA34: 16.61474109
B35: 28 | AA35: 16.81645065
B36: 29 | AA36: 17.01567634
B37: 30 | AA37: 17.24394784
B38: 31 | AA38: 17.45361908
B39: 32 | AA39: 17.65579634
B40: 33 | AA40: 17.8891878
B41: 34 | AA41: 18.13763414
B42: 35 | AA42: 18.40076872
B43: 36 | AA43: 18.6811061
B44: 37 | AA44: 18.96647931
B45: 38 | AA45: 19.25634174
B46: 39 | AA46: 19.55015095
B47: 40 | AA47: 19.84736864
B48: 41 | AA48: 20.15046052
B49: 42 | AA49: 20.45589622
B50: 43 | AA50: 20.79292783
B51: 44 | AA51: 21.15166542
B52: 45 | AA52: 21.52830003
B53: 46 | AA53: 21.95455166
B54: 47 | AA54: 22.38576205
B55: 48 | AA55: 22.81784521
B56: 49 | AA56: 23.31317118
B57: 50 | AA57: 23.86366314
AA58: 24.41883141
AA59: 25.00297849
AA60: 25.64507509
AA61: 26.32761721
AA62: 27.07460489
AA63: 27.89802865
AA64: 28.80916216
AA65: 29.81566337
AA66: 30.88256797
AA67: 32.05651654
AA68: 33.40733985
AA69: 34.94334085
AA70: 36.69628634
AA71: 38.7195876
AA72: 41.08377579
AA73: 43.92524741
AA74: 47.44948514
AA75: 51.94594554
AA76: 57.9082363
AA77: 66.43004708
AA78: 81.92057458
AA79: 124.0280353
AA80: 167.9454012
AA81: 180.2996134
AA82: 176.037921
AA83: 165.1943746
AA84: 151.4600066
AA85: 136.6517175
AA86: 121.8035029
AA87: 107.5483046
AA88: 93.72704085
AA89: 80.03636552
AA90: 67.47353348
AA91: 57.73731767
AA92: 50.9423141
AA93: 45.96423019
AA94: 42.1827172
AA95: 39.23156679
AA96: 36.86686036
AA97: 34.92626432
AA98: 33.29695396
AA99: 31.91936356
AA100: 30.7202946
AA101: 29.64135458
AA102: 28.68219652
AA103: 27.80528333
AA104: 26.9849106
AA105: 26.27160896
AA106: 25.63634133
AA107: 25.02537568
AA108: 24.46245784
AA109: 23.93578508
AA110: 23.43376033
AA111: 22.98419442
AA112: 22.53708387
AA113: 22.09131063
AA114: 21.68474566
AA115: 21.30691415
AA116: 20.94750723
AA117: 20.60271876
AA118: 20.26562869
AA119: 19.96545853
AA120: 19.69867985
AA121: 19.42576034
AA122: 19.14473763
AA123: 18.88970907
AA124: 18.65288771
AA125: 18.40222509
AA126: 18.17635966
AA127: 17.96324235
AA128: 17.72355919
AA129: 17.4959943
AA130: 17.28322985
AA131: 17.08494597
AA132: 16.88950593
AA133: 16.69664003
AA134: 16.5132819
AA135: 16.33504452
AA136: 16.19363076
AA137: 16.04578377
AA138: 15.89135585
AA139: 15.73019863
AA140: 15.5661572
AA141: 15.43408766
AA142: 15.29384538
AA143: 15.14927336
AA144: 15.03621969
AA145: 14.91162778
AA146: 14.77147397
AA147: 14.65854677
AA148: 14.53374477
AA149: 14.39693217
AA150: 14.28700668
AA151: 14.16402457

Sheet 04-②調節計算（2段）
B2: 入 力 条 件
B4: 設 定 調 整 池 諸 元 | K4: 行 為 後 流 入 量 | U4: 計 算 結 果 （時 系 列）
B6: 水深-容量 | G6: ■上段オリフィス | K6: 行為後ピーク流入量 | M6: =MAX('02流出計算（QT-Sグラフ）'!$J$5:$J$149) -> 0 | N6: m3/s | U6: 時刻 | V6: 行為後流入量 | W6: 浸透考慮後流入量 | X6: 許容放流量 | Y6: 調節後放流量 | Z6: 調整池水位
B7: No | C7: 水深H（m） | D7: 容量V（m3） | G7: 放流口形状 | K7: （浸透考慮後）
B8: 1 | F8: 2 | G8: （口径）
B9: 2 | K9: 許容放流量（計） | M9: =MAX('01流出計算（Q-Tグラフ）'!$I$5:$I$149) -> 0 | N9: m3/s
B10: 3 | G10: 直径 | I10: m
B11: 4 | P11: 計 算 結 果
B12: 5 | K12: 許容放流量（上段） | N12: m3/s
B13: 6 | G13: 高さ | I13: m
B14: 7 | G14: 幅 | I14: m | P14: 総合評価
B15: 8 | K15: 許容放流量（下段） | M15: =M9-M12 -> 0 | N15: m3/s
B16: 9 | G16: （管底位置） | P16: 放流量評価
B17: 10 | G17: 池底高から | I17: m
B18: 11 | P18: 池容量評価
B19: 12 | G19: ■下段オリフィス
B20: 13 | G20: 放流口形状
B21: 14 | G21: （口径） | P21: 最大放流量（上段+下段） | S21: m3/s
B22: 15 | F22: 1
B23: 16 | G23: 直径 | I23: m | P23: 最大放流量（下段） | S23: m3/s
B24: 17
B25: 18 | P25: 池内最大水深 | S25: m
B26: 19 | G26: 高さ | I26: m
B27: 20 | G27: 幅 | I27: m | P27: 池内最大ボリューム | S27: m3
B28: 21
B29: 22 | G29: （管底位置） | P29: 許 可 申 請 図 書 の 作 成
B30: 23 | G30: 池底高から | I30: m
B31: 24
B32: 25
B33: 26
B34: 27
B35: 28
B36: 29
B37: 30
B38: 31
B39: 32
B40: 33
B41: 34
B42: 35
B43: 36
B44: 37
B45: 38
B46: 39
B47: 40
B48: 41
B49: 42
B50: 43
B51: 44
B52: 45
B53: 46
B54: 47
B55: 48
B56: 49
B57: 50

Sheet 04-③調節計算（ポンプ）
B2: 入 力 条 件
B4: 設 定 調 整 池 諸 元 | F4: 放 流 ポ ン プ 諸 元 | J4: 行 為 後 流 入 量 | U4: 計 算 結 果 （時 系 列）
B6: 水深-容量 | F6: 水深-ポンプ | J6: 行為後ピーク流入量 | L6: =MAX('02流出計算（QT-Sグラフ）'!$J$5:$J$149) -> 0 | M6: m3/s | U6: 時刻 | V6: 行為後流入量 | W6: 浸透考慮後流入量 | X6: 許容放流量 | Y6: 調節後放流量 | Z6: 調整池水位
B7: No | C7: 水深H（m） | D7: 容量V（m3） | F7: No | G7: 水深H（m） | H7: ポンプ規模Q(m3/s) | J7: （浸透考慮後）
B8: 1 | F8: 1
B9: 2 | F9: 2 | J9: 許容放流量 | L9: =MAX('01流出計算（Q-Tグラフ）'!$I$5:$I$149) -> 0 | M9: m3/s
B10: 3 | F10: 3 | J10: （行為前ピーク流入量）
B11: 4 | F11: 4 | P11: 計 算 結 果
B12: 5 | F12: 5
B13: 6 | F13: 6
B14: 7 | F14: 7 | P14: 総合評価
B15: 8 | F15: 8
B16: 9 | F16: 9 | P16: 放流量評価
B17: 10 | F17: 10
B18: 11 | F18: 11 | P18: 池容量評価
B19: 12 | F19: 12
B20: 13 | F20: 13
B21: 14 | F21: 14 | P21: 最大放流量 | S21: m3/s
B22: 15 | F22: 15
B23: 16 | F23: 16 | P23: 池内最大水深 | S23: m
B24: 17 | F24: 17
B25: 18 | F25: 18 | P25: 池内最大ボリューム | S25: m3
B26: 19 | F26: 19
B27: 20 | F27: 20
B28: 21 | F28: 21
B29: 22 | F29: 22 | P29: 許 可 申 請 図 書 の 作 成
B30: 23 | F30: 23
B31: 24 | F31: 24
B32: 25 | F32: 25
B33: 26 | F33: 26
B34: 27 | F34: 27
B35: 28 | F35: 28
B36: 29 | F36: 29
B37: 30 | F37: 30
B38: 31 | F38: 31
B39: 32 | F39: 32
B40: 33 | F40: 33
B41: 34 | F41: 34
B42: 35 | F42: 35
B43: 36 | F43: 36
B44: 37 | F44: 37
B45: 38 | F45: 38
B46: 39 | F46: 39
B47: 40 | F47: 40
B48: 41 | F48: 41
B49: 42 | F49: 42
B50: 43 | F50: 43
B51: 44 | F51: 44
B52: 45 | F52: 45
B53: 46 | F53: 46
B54: 47 | F54: 47
B55: 48 | F55: 48
B56: 49 | F56: 49
B57: 50 | F57: 50

Sheet １．行為区域の概要 (hidden)
A2: １．行為区域の概要
B3: （※位置及び行為前後の土地利用区分のわかる平面図を添付すること）
A4: 行為区域位置 | E4: ○○市○○区○○町
A5: 行為面積 | E5: 0
A6: 行為前後の土地利用区分
B8: 区分 | E8: 土地利用の形態の細区分 | F8: 流出係数 | G8: 行為前面積 （ha） | H8: 行為後面積 （ha）
B9: 宅地等に該当する土地 | C9: 第１号関連 | E9: 宅地
E10: 池沼
E11: 水路
E12: ため池
E13: 道路(法面を有しないもの）
E14: 道路（法面を有するもの）
E15: 鉄道線路（法面を有しないもの）
E16: 鉄道線路（法面を有するもの）
E17: 飛行場（法面を有しないもの）
E18: 飛行場（法面を有するもの）
E19: 太陽光パネル | I19: =$F19*$G19 -> 0 | J19: =$F19*$H19 -> 0
B20: 宅地等以外の土地 | C20: 第２号 関 連 | E20: 不浸透性材料により舗装された土地 （法面を除く）
E21: 不浸透性材料により覆われた法面
C22: 第３号関連 | E22: ゴルフ場（雨水を排除するための排水施設を伴うものに限る）
E23: 運動場その他これに類する施設（雨水を排除するための排水施設を伴うものに限る）
E24: ローラーその他これに類する建設機械を用いて締め固められた土地
C25: 上記第１号から 第３号に掲げる 土地以外の土地 | E25: 山地
E26: 人工的に造成され植生に覆われた法面
E27: 林地、耕地、原野その他ローラーその他これに類する建設機械を用いて締め固められていない土地
B28: そ の 他
B33: 面積計 | G33: =SUM(G9:G32) -> 0 | H33: =SUM(H9:H32) -> 0
B34: 平均流出係数 | G34: =SUMPRODUCT($F$9:$F$32,G9:G32)/$G$33 ->  | H34: =SUMPRODUCT($F$9:$F$32,H9:H32)/$H$33 -> 

Sheet ２．使用降雨強度及びピーク流入量 (hidden)
A2: ２．使用降雨強度及びピーク流量
A4: ピーク流入量（行為前） | G4: m3／s
A5: ピーク流入量（行為後） | G5: m3／s
A8: 降雨強度の推移表 年 月 日
B10: 時 | C10: 分 | D10: 降雨量 （mm/h） | E10: 時 | F10: 分 | G10: 降雨量 （mm/h） | H10: 時 | I10: 分 | J10: 降雨量 （mm/h） | K10: 時 | L10: 分 | M10: 降雨量 （mm/h）
B11: 0 | C11: 0－10 | E11: 6 | F11: 0－10 | H11: 12 | I11: 0－10 | K11: 18 | L11: 0－10
C12: 10－20 | F12: 10－20 | I12: 10－20 | L12: 10－20
C13: 20－30 | F13: 20－30 | I13: 20－30 | L13: 20－30
C14: 30－40 | F14: 30－40 | I14: 30－40 | L14: 30－40
C15: 40－50 | F15: 40－50 | I15: 40－50 | L15: 40－50
C16: 50－60 | F16: 50－60 | I16: 50－60 | L16: 50－60
B17: 1 | C17: 0－10 | E17: 7 | F17: 0－10 | H17: 13 | I17: 0－10 | K17: 19 | L17: 0－10
C18: 10－20 | F18: 10－20 | I18: 10－20 | L18: 10－20
C19: 20－30 | F19: 20－30 | I19: 20－30 | L19: 20－30
C20: 30－40 | F20: 30－40 | I20: 30－40 | L20: 30－40
C21: 40－50 | F21: 40－50 | I21: 40－50 | L21: 40－50
C22: 50－60 | F22: 50－60 | I22: 50－60 | L22: 50－60
B23: 2 | C23: 0－10 | E23: 8 | F23: 0－10 | H23: 14 | I23: 0－10 | K23: 20 | L23: 0－10
C24: 10－20 | F24: 10－20 | I24: 10－20 | L24: 10－20
C25: 20－30 | F25: 20－30 | I25: 20－30 | L25: 20－30
C26: 30－40 | F26: 30－40 | I26: 30－40 | L26: 30－40
C27: 40－50 | F27: 40－50 | I27: 40－50 | L27: 40－50
C28: 50－60 | F28: 50－60 | I28: 50－60 | L28: 50－60
B29: 3 | C29: 0－10 | E29: 9 | F29: 0－10 | H29: 15 | I29: 0－10 | K29: 21 | L29: 0－10
C30: 10－20 | F30: 10－20 | I30: 10－20 | L30: 10－20
C31: 20－30 | F31: 20－30 | I31: 20－30 | L31: 20－30
C32: 30－40 | F32: 30－40 | I32: 30－40 | L32: 30－40
C33: 40－50 | F33: 40－50 | I33: 40－50 | L33: 40－50
C34: 50－60 | F34: 50－60 | I34: 50－60 | L34: 50－60
B35: 4 | C35: 0－10 | E35: 10 | F35: 0－10 | H35: 16 | I35: 0－10 | K35: 22 | L35: 0－10
C36: 10－20 | F36: 10－20 | I36: 10－20 | L36: 10－20
C37: 20－30 | F37: 20－30 | I37: 20－30 | L37: 20－30
C38: 30－40 | F38: 30－40 | I38: 30－40 | L38: 30－40
C39: 40－50 | F39: 40－50 | I39: 40－50 | L39: 40－50
C40: 50－60 | F40: 50－60 | I40: 50－60 | L40: 50－60
B41: 5 | C41: 0－10 | E41: 11 | F41: 0－10 | H41: 17 | I41: 0－10 | K41: 23 | L41: 0－10
C42: 10－20 | F42: 10－20 | I42: 10－20 | L42: 10－20
C43: 20－30 | F43: 20－30 | I43: 20－30 | L43: 20－30
C44: 30－40 | F44: 30－40 | I44: 30－40 | L44: 30－40
C45: 40－50 | F45: 40－50 | I45: 40－50 | L45: 40－50
C46: 50－60 | F46: 50－60 | I46: 50－60 | L46: 50－60

Sheet ３．流出抑制施設諸元 （一定量） (hidden)
A2: ３．流出抑制施設諸元
B3: 浸透施設諸元 | J3: 空隙貯留量諸元
B4: 浸透能力 | C4: 0 | D4: m3/s | J4: 空隙貯留量 | K4: 0 | L4: m3
B6: 【浸透マス】 | C6: 単位設計浸透能（ｍ3/ｈｒ/個） | E6: 設置数量 （個） | F6: 影響係数 | J6: 【浸透マス】 1個あたり | K6: ます部 | L6: 砕石部
C7: 比浸透量（㎡） | D7: 飽和透水係数 （m/hr） | F7: （1） | G7: （2） | H7: （3） | K7: 体積 （ｍ3） | L7: 体積 （ｍ3） | M7: 空隙率 （％）
F8: 内容（１） | G8: 内容（２） | H8: 内容（３）
B9: 1 | J9: 1
B10: 2 | J10: 2
B11: 3 | J11: 3
B12: 4 | J12: 4
B13: 5 | J13: 5
B14: 6 | J14: 6
B15: 7 | J15: 7
B16: 8 | J16: 8
B17: 9 | J17: 9
B18: 10 | J18: 10
B20: 【浸透トレンチ】 | C20: 単位設計浸透能（ｍ3/ｈｒ/m） | E20: 設置数量 （ｍ） | F20: 影響係数 | J20: 【浸透トレンチ】 1mあたり | K20: 浸透管部 | L20: 砕石部
C21: 比浸透量（㎡） | D21: 飽和透水係数 （m/hr） | F21: （1） | G21: （2） | H21: （3） | K21: 体積 （ｍ3） | L21: 体積 （ｍ3） | M21: 空隙率 （％）
F22: 内容（１） | G22: 内容（２） | H22: 内容（３）
B23: 1 | J23: 1
B24: 2 | J24: 2
B25: 3 | J25: 3
B26: 4 | J26: 4
B27: 5 | J27: 5
B28: 6 | J28: 6
B29: 7 | J29: 7
B30: 8 | J30: 8
B31: 9 | J31: 9
B32: 10 | J32: 10
B34: 【透水性舗装】 | C34: 単位設計浸透能（ｍ3/ｈｒ/㎡） | E34: 設置数量 （㎡） | F34: 影響係数 | J34: 【透水性塗装】 | K34: 体積 （ｍ3） | L34: 空隙率 （％）
C35: 比浸透量（㎡） | D35: 飽和透水係数 （m/hr） | F35: （1） | G35: （2） | H35: （3）
F36: 内容（１） | G36: 内容（２） | H36: 内容（３）
B37: 1 | J37: 1
B38: 2 | J38: 2
B39: 3 | J39: 3
B40: 4 | J40: 4
B41: 5 | J41: 5
B42: 6 | J42: 6
B43: 7 | J43: 7
B44: 8 | J44: 8
B45: 9 | J45: 9
B46: 10 | J46: 10
B48: 【その他】 | C48: 単位設計浸透能（ｍ3/ｈｒ/単位） | E48: 設置数量 （単位） | F48: 影響係数 | J48: 【その他】 | K48: 体積 （ｍ3） | L48: 空隙率 （％）
C49: 比浸透量（㎡） | D49: 飽和透水係数 （m/hr） | F49: （1） | G49: （2） | H49: （3）
F50: 内容（１） | G50: 内容（２） | H50: 内容（３）
B51: 1 | J51: 1
B52: 2 | J52: 2
B53: 3 | J53: 3
B54: 4 | J54: 4
B55: 5 | J55: 5
B56: 6 | J56: 6
B57: 7 | J57: 7
B58: 8 | J58: 8
B59: 9 | J59: 9
B60: 10 | J60: 10

Sheet ３．流出抑制施設諸元 （浸透施設） (hidden)
A2: ３．流出抑制施設諸元
A6: 透水性舗装
B8: 基本諸元
B9: 設置数量(舗装面積) (m2)
B10: 飽和透水係数 （m/hr） | G10: 上層路盤での貯留率(%) | I10: =L21 -> 0
B11: 比浸透量算定定数 K=aH+b | C11: a | G11: 下層路盤での貯留率(%) | I11: =L22 -> 0
C12: b | G12: 下層路盤厚(mm) | I12: =D22 -> 0
B13: 目詰まり 係数 | C13: C1 | G13: 下層路盤での貯留量(mm) | I13: =M22 -> 0
C14: C2 | G14: 貯留量の合計(mm) | I14: =M23 -> 0
B16: 貯留率と水拘束率
D17: 厚さ(mm) | E17: 空気間隙率 (%) | F17: 空気間隙率との関係 | G17: 水拘束率 (%) | H17: 水拘束量 (mm) | I17: 貯留率 (%) | J17: 貯留量 (mm) | L17: STEP2での 貯留率 (%) | M17: STEP2での 貯留量 (mm)
B18: 関係式 | D18: a | E18: b | F18: b' | G18: c | H18: a×c/100 | I18: d (=b+b') | J18: a×d/100 | L18: d-c | M18: a×(d-c)/100
B19: 表層 | H19: =D19*G19/100 -> 0 | I19: =E19+F19 -> 0 | J19: =D19*I19/100 -> 0 | L19: =I19-G19 -> 0 | M19: =D19*(I19-G19)/100 -> 0
B20: 中間層・基層 | H20: =D20*G20/100 -> 0 | I20: =E20+F20 -> 0 | J20: =D20*I20/100 -> 0 | L20: =I20-G20 -> 0 | M20: =D20*(I20-G20)/100 -> 0
B21: 上層路盤 | H21: =D21*G21/100 -> 0 | I21: =E21+F21 -> 0 | J21: =D21*I21/100 -> 0 | L21: =I21-G21 -> 0 | M21: =D21*(I21-G21)/100 -> 0
B22: 下層路盤 | H22: =D22*G22/100 -> 0 | I22: =E22+F22 -> 0 | J22: =D22*I22/100 -> 0 | L22: =I22-G22 -> 0 | M22: =D22*(I22-G22)/100 -> 0
B23: 合計 | D23: =SUM(D19:D22) -> 0 | E23: - | F23: - | G23: - | H23: =SUM(H19:H22) -> 0 | I23: - | J23: =SUM(J19:J22) -> 0 | L23: - | M23: =SUM(M19:M22) -> 0
A25: 浸透マス・トレンチ
B27: 浸透能諸元 | K27: 空隙貯留諸元
B28: 【浸透マス】 | D28: 単位設計浸透能（ｍ3/ｈｒ/個） | F28: 設置数量 （個） | G28: 設計水頭 (m) | H28: 影響係数 | K28: 【浸透マス】 1個あたり | L28: ます部 | M28: 砕石部 | P28: Σ | Q28: 設計浸透量 | R28: 平均設計水頭 | S28: 設計空隙貯留量
D29: 比浸透量（㎡） | E29: 飽和透水係数 （m/hr） | H29: 地下水位 係数 | I29: 目詰まり 係数 | L29: 体積 （ｍ3） | M29: 体積 （ｍ3） | N29: 空隙率 （％）
O30: 小計
B31: 1 | H31: 1 | I31: 1 | K31: 1 | P31: =D31*E31*F31*G31*H31*I31 -> 0 | Q31: =D31*E31*F31*H31*I31 -> 0 | S31: =L31*M31/100 -> 0
B32: 2 | H32: 1 | I32: 1 | K32: 2 | P32: =D32*E32*F32*G32*H32*I32 -> 0 | Q32: =D32*E32*F32*H32*I32 -> 0 | S32: 0
B33: 3 | H33: 1 | I33: 1 | K33: 3 | P33: 0 | Q33: 0 | S33: 0
B34: 4 | H34: 1 | I34: 1 | K34: 4 | P34: 0 | Q34: 0 | S34: 0
B35: 5 | H35: 1 | I35: 1 | K35: 5 | P35: 0 | Q35: 0 | S35: 0
B36: 6 | H36: 1 | I36: 1 | K36: 6 | P36: 0 | Q36: 0 | S36: 0
B37: 7 | H37: 1 | I37: 1 | K37: 7 | P37: 0 | Q37: 0 | S37: 0
B38: 8 | H38: 1 | I38: 1 | K38: 8 | P38: 0 | Q38: 0 | S38: 0
B39: 9 | H39: 1 | I39: 1 | K39: 9 | P39: 0 | Q39: 0 | S39: 0
B40: 10 | H40: 1 | I40: 1 | K40: 10 | P40: 0 | Q40: 0 | S40: 0
B42: 【浸透トレンチ】 | D42: 単位設計浸透能（ｍ3/ｈｒ/m） | F42: 設置数量 （ｍ） | G42: 設計水頭 (m) | H42: 影響係数 | K42: 【浸透トレンチ】 1mあたり | L42: 浸透管部 | M42: 砕石部
D43: 比浸透量（㎡） | E43: 飽和透水係数 （m/hr） | H43: 地下水位 係数 | I43: 目詰まり 係数 | L43: 体積 （ｍ3） | M43: 体積 （ｍ3） | N43: 空隙率 （％）
B45: 1 | H45: 1 | I45: 1 | K45: 1 | P45: =D45*E45*F45*G45*H45*I45 -> 0 | Q45: =D45*E45*F45*H45*I45 -> 0 | S45: =L45*M45/100 -> 0
B46: 2 | H46: 1 | I46: 1 | K46: 2 | P46: =D46*E46*F46*G46*H46*I46 -> 0 | Q46: =D46*E46*F46*H46*I46 -> 0 | S46: 0
B47: 3 | H47: 1 | I47: 1 | K47: 3 | P47: 0 | Q47: 0 | S47: 0
B48: 4 | H48: 1 | I48: 1 | K48: 4 | P48: 0 | Q48: 0 | S48: 0
B49: 5 | H49: 1 | I49: 1 | K49: 5 | P49: 0 | Q49: 0 | S49: 0
B50: 6 | H50: 1 | I50: 1 | K50: 6 | P50: 0 | Q50: 0 | S50: 0
B51: 7 | H51: 1 | I51: 1 | K51: 7 | P51: 0 | Q51: 0 | S51: 0
B52: 8 | H52: 1 | I52: 1 | K52: 8 | P52: 0 | Q52: 0 | S52: 0
B53: 9 | H53: 1 | I53: 1 | K53: 9 | P53: 0 | Q53: 0 | S53: 0
B54: 10 | H54: 1 | I54: 1 | K54: 10 | P54: 0 | Q54: 0 | S54: 0
B56: 統合諸元
B57: 設計浸透能(m3/hr) | D57: =Q59 -> 0
B58: 平均設計水頭(m) | D58: =IF(D57>0,+R59,0) -> 0
B59: 設計空隙貯留量(m3) | D59: =S59 -> 0 | O59: 総合計 | P59: =P61+P62 -> 0 | Q59: =Q61+Q62 -> 0 | R59: =P59/Q59 ->  | S59: =S61+S62 -> 0
O61: マス | P61: =SUM(P31:P40) -> 0 | Q61: =SUM(Q31:Q40) -> 0 | R61: =P61/Q61 ->  | S61: =SUM(S31:S40) -> 0
O62: トレンチ | P62: =SUM(P45:P54) -> 0 | Q62: =SUM(Q45:Q54) -> 0 | R62: =P62/Q62 ->  | S62: =SUM(S45:S54) -> 0

Sheet ３．流出抑制施設諸元（調整池諸元） (hidden)
A2: ３．流出抑制施設諸元
B3: （※流出抑制施設の配置位置（平面図）、構造諸元のわかる図面を添付すること）
B4: 調整池諸元
B5: 放流口径（2段オリフィスの場合は、上・下段の雨諸元を記載）
D6: 下段 | E6: 上段（２段オリフィスの場合）
B7: 放流口形状 | C7: 形状
C8: 直径
C9: 高さ
C10: 幅
B11: 管底位置（池底から）
B13: Ｈ | C13: Ｖ

Sheet ３．流出抑制施設諸元（調整池諸元_ポンプ排水） (hidden)
A2: ３．流出抑制施設諸元（ポンプ排水）
B3: （※流出抑制施設の配置位置（平面図）、構造諸元のわかる図面を添付すること）
B5: 調整池諸元 | E5: ポンプ諸元
B6: Ｈ | C6: Ｖ | E6: Ｈ | F6: Q

Sheet ３．流出抑制施設諸元 （調節計算結果） (hidden)
A2: ３．流出抑制施設諸元 | K2: 時刻 | L2: 行為後流入量 | M2: 浸透考慮後流入量 | N2: 許容放流量 | O2: 調節後放流量 | P2: 調整池水位
A3: 調節計算結果
B4: 最大流入量（行為後） | D4: m3/s
B5: 最大放流量 | D5: m3/s | E5: ＜ | F5: 許容放流量 | H5: m3/s
